bitfinex/quotes_BTCUSD_20250205
["timestamp","ask_amount","ask_price","bid_price","bid_amount"]
[1738785626043,0.01353735,97390.0,97377.0,0.0287386]
[1738785626253,0.10250365,97389.0,97388.0,0.154023]
[1738785626472,0.10250365,97389.0,97380.0,0.20538]
[1738785626679,0.10250365,97389.0,97388.0,0.154023]
[1738785627501,0.0001069,97390.0,97389.0,0.154021]
[1738785631321,0.01367627,97390.0,97389.0,0.154021]
[1738785631519,0.11617992,97390.0,97389.0,0.154021]
[1738785631742,0.11617992,97390.0,97378.0,0.205383]
[1738785631969,0.11617992,97390.0,97364.0,0.205412]
[1738785631970,0.10250365,97389.0,97364.0,0.205412]
[1738785632143,0.0463,97384.0,97364.0,0.154061]
[1738785632370,0.10250365,97383.0,97382.0,0.154032]
[1738785632581,0.01367627,97390.0,97389.0,0.154021]
[1738785632786,0.11617992,97390.0,97389.0,0.1977199]
[1738785633204,0.10261055,97390.0,97389.0,0.1977199]
[1738785633807,0.0001069,97390.0,97389.0,0.1977199]
[1738785633983,0.10261055,97390.0,97389.0,0.1977199]
[1738785634591,0.11618364,97390.0,97389.0,0.1977199]
[1738785637274,0.01367999,97390.0,97389.0,0.1977199]
[1738785637479,0.3251,97399.0,97398.0,0.154007]
[1738785637672,0.10250365,97399.0,97398.0,0.154007]
[1738785641824,0.10250365,97399.0,97396.0,0.205345]
[1738785642151,0.10250365,97398.0,97395.0,0.154011]
[1738785642355,0.10250365,97398.0,97395.0,0.15401]
[1738785642495,0.10250365,97398.0,97396.0,0.06265931]
[1738785642693,0.10250365,97398.0,97397.0,0.154008]
[1738785643944,0.12424698,97398.0,97397.0,0.154008]
[1738785645963,0.12424698,97398.0,97396.0,0.21666931]
[1738785646178,0.12424698,97398.0,97395.0,0.205347]
[1738785646506,0.12424698,97398.0,97386.0,0.205367]
[1738785646713,0.02174333,97397.0,97396.0,0.15401]
[1738785646896,0.12424698,97397.0,97396.0,0.15401]
[1738785647089,0.12424698,97397.0,97396.0,0.1899462]
[1738785647330,0.12424698,97397.0,97391.0,0.205357]
[1738785647541,0.10250365,97396.0,97393.0,0.154014]
[1738785647762,0.10250365,97396.0,97391.0,0.154017]
[1738785648139,0.02174333,97395.0,97391.0,0.154017]
[1738785648343,0.10250365,97394.0,97385.0,0.205368]
[1738785648520,0.10250365,97394.0,97386.0,0.048795]
[1738785648749,0.0767,97393.0,97375.0,0.20539]
[1738785648949,0.25651965,97392.0,97386.0,0.154025]
[1738785649198,0.25651965,97392.0,97375.0,0.20539]
[1738785649199,0.32960398,97392.0,97384.0,0.154029]
[1738785649351,0.154021,97390.0,97371.0,0.205399]
[1738785649715,0.10250365,97389.0,97386.0,0.154024]
[1738785649896,0.25652565,97389.0,97387.0,0.0359395]
[1738785650332,0.154023,97388.0,97387.0,0.0359395]
[1738785650530,0.10250365,97388.0,97387.0,0.0359395]
[1738785650727,0.13764639,97388.0,97387.0,0.0359395]
[1738785650933,0.13764639,97388.0,97383.0,0.15403]
[1738785651132,0.10250365,97387.0,97383.0,0.15403]
[1738785651374,0.10250365,97387.0,97382.0,0.00022428]
[1738785651580,0.10250365,97387.0,97386.0,0.154026]
[1738785651994,0.10250365,97387.0,97384.0,0.154027]
[1738785652209,0.25652865,97387.0,97382.0,0.00022428]
[1738785652648,0.10250365,97387.0,97383.0,0.01542573]
[1738785652799,0.10250365,97387.0,97384.0,0.154029]
[1738785653007,0.10250365,97387.0,97386.0,0.0822]
[1738785653187,0.10250365,97387.0,97386.0,0.154026]
[1738785653786,0.10250365,97387.0,97384.0,0.154029]
[1738785653973,0.10250365,97387.0,97385.0,0.0375055]
[1738785654575,0.03484281,97386.0,97385.0,0.0375055]
[1738785654798,0.13734646,97386.0,97385.0,0.1915325]
[1738785655833,0.13734646,97386.0,97385.0,0.0375055]
[1738785656052,0.13734646,97386.0,97385.0,0.154027]
[1738785656849,0.13734646,97386.0,97385.0,0.235427]
[1738785657200,0.13734646,97386.0,97385.0,0.154027]
[1738785657734,0.03484281,97386.0,97385.0,0.154027]
[1738785659832,0.02144173,97397.0,97396.0,0.15401]
[1738785660050,0.12394538,97397.0,97396.0,0.2104815]
[1738785661516,0.11590273,97397.0,97396.0,0.2104815]
[1738785664279,0.11600953,97397.0,97396.0,0.2104815]
[1738785666449,0.01350588,97397.0,97396.0,0.2910815]
[1738785668231,0.0001068,97397.0,97396.0,0.2104815]
[1738785668914,0.10261045,97397.0,97396.0,0.2104815]
[1738785670815,0.11600661,97397.0,97396.0,0.2104815]
[1738785674392,0.01350296,97397.0,97396.0,0.2104815]
[1738785678208,0.01350296,97397.0,97396.0,0.2882815]
[1738785678344,0.01350296,97397.0,97396.0,0.43395549]
[1738785679400,0.01350296,97397.0,97396.0,0.47985549]
[1738785679758,0.0001068,97397.0,97396.0,0.58235914]
[1738785682750,0.0001068,97397.0,97396.0,0.59284379]
[1738785683871,0.0001068,97397.0,97396.0,0.49034014]
[1738785684367,0.0001068,97397.0,97396.0,0.44444014]
[1738785684567,0.0001068,97397.0,97396.0,0.35615549]
[1738785684726,0.253611,97413.0,97407.0,0.153992]
[1738785684727,0.0483,97413.0,97407.0,0.153992]
[1738785684928,0.10250365,97412.0,97408.0,0.1693892]
[1738785685159,0.10250365,97412.0,97408.0,0.0153992]
[1738785686032,0.034799,97411.0,97408.0,0.0153992]
[1738785686231,0.10250365,97410.0,97408.0,0.0153992]
[1738785687602,0.034799,97409.0,97408.0,0.0153992]
[1738785687760,0.13730265,97409.0,97408.0,0.0153992]
[1738785689849,0.13730265,97409.0,97408.0,0.1693902]
[1738785690495,0.13730265,97409.0,97408.0,0.0153992]
[1738785691205,0.13730265,97409.0,97408.0,0.1693902]
[1738785691607,0.034799,97409.0,97408.0,0.1693902]
[1738785691808,0.034799,97409.0,97408.0,0.25161666]
[1738785692008,0.034799,97409.0,97408.0,0.2505902]
[1738785693493,0.01338423,97409.0,97408.0,0.2505902]
[1738785694693,0.01338423,97409.0,97408.0,0.2607819]
[1738785695075,0.0001069,97410.0,97409.0,0.153989]
[1738785695307,0.0001069,97410.0,97409.0,0.25521292]
[1738785697445,0.01349971,97410.0,97409.0,0.25521292]
[1738785697965,0.11600336,97410.0,97409.0,0.25521292]
[1738785699143,0.01349971,97410.0,97409.0,0.25521292]
[1738785699342,0.01349971,97410.0,97409.0,0.38561292]
[1738785700099,0.0001069,97410.0,97409.0,0.38561292]
[1738785700884,0.0001069,97410.0,97409.0,0.53561292]
[1738785701086,0.0001069,97431.0,97429.0,0.153958]
[1738785701288,0.0001069,97431.0,97429.0,0.44582779]
[1738785704616,0.06342454,97454.0,97453.0,0.15392]
[1738785704819,0.16592819,97454.0,97453.0,0.15392]
[1738785705014,0.3251,97466.0,97448.0,0.205235]
[1738785705220,0.10250365,97465.0,97459.0,0.15391]
[1738785705427,0.10250365,97465.0,97459.0,0.1898228]
[1738785705623,0.10250365,97465.0,97459.0,0.0359128]
[1738785705829,0.10250365,97465.0,97460.0,0.153909]
[1738785706179,0.10250365,97465.0,97461.0,0.153907]
[1738785706845,0.01335797,97464.0,97461.0,0.153907]
[1738785707034,0.10250365,97463.0,97462.0,0.03950348]
[1738785707445,0.10250365,97463.0,97459.0,0.1898228]
[1738785707646,0.10250365,97463.0,97460.0,0.153908]
[1738785708089,0.10250365,97463.0,97459.0,0.1898228]
[1738785708248,0.10250365,97463.0,97460.0,0.153908]
[1738785708452,0.01335797,97462.0,97459.0,0.0359128]
[1738785708668,0.10250365,97461.0,97460.0,0.06002668]
[1738785708884,0.10250365,97461.0,97431.0,0.28726804]
[1738785709085,0.10250365,97461.0,97453.0,0.15392]
[1738785710007,0.01335797,97460.0,97451.0,0.153922]
[1738785710175,0.01335797,97460.0,97431.0,0.29750988]
[1738785710176,0.0795,97458.0,97431.0,0.09223888]
[1738785710380,0.10250365,97457.0,97433.0,0.205269]
[1738785710558,0.10250365,97457.0,97432.0,0.03841087]
[1738785710758,0.10250365,97457.0,97448.0,0.153927]
[1738785711402,0.10250365,97457.0,97447.0,0.205237]
[1738785711751,0.10250365,97457.0,97448.0,0.153928]
[1738785711949,0.10250365,97457.0,97448.0,0.2103692]
[1738785712553,0.10250365,97457.0,97450.0,0.153925]
[1738785712742,0.10250365,97457.0,97449.0,0.153926]
[1738785713133,0.10250365,97457.0,97448.0,0.0564412]
[1738785713883,0.10250365,97457.0,97453.0,0.00022428]
[1738785714064,0.10250365,97457.0,97453.0,0.02128353]
[1738785714266,0.10250365,97457.0,97453.0,0.00022428]
[1738785715293,0.01334447,97456.0,97453.0,0.00022428]
[1738785715493,0.10250365,97455.0,97453.0,0.00022428]
[1738785716544,0.02135367,97463.0,97453.0,0.00022428]
[1738785716748,0.10250365,97462.0,97454.0,0.01320655]
[1738785717127,0.10250365,97462.0,97459.0,0.153909]
[1738785717306,0.10250365,97462.0,97460.0,0.153908]
[1738785718089,0.10250365,97462.0,97461.0,0.153907]
[1738785718292,0.10250365,97462.0,97461.0,0.23218356]
[1738785719311,0.13720951,97462.0,97461.0,0.23218356]
[1738785720137,0.27634951,97462.0,97454.0,0.01320655]
[1738785720326,0.27634951,97462.0,97453.0,0.00022428]
[1738785720327,0.19884951,97462.0,97453.0,0.00022428]
[1738785720837,0.03470586,97461.0,97454.0,0.153918]
[1738785720989,0.10250365,97460.0,97455.0,0.205222]
[1738785721155,0.10250365,97460.0,97453.0,0.00022428]
[1738785721361,0.10250365,97460.0,97454.0,0.02054553]
[1738785721581,0.10250365,97460.0,97456.0,0.153914]
[1738785721915,0.03470586,97459.0,97456.0,0.153914]
[1738785722118,0.10250365,97458.0,97454.0,0.02054553]
[1738785722314,0.10250365,97458.0,97456.0,0.153914]
[1738785722528,0.10250365,97458.0,97457.0,0.03799098]
[1738785723192,0.13720951,97458.0,97457.0,0.03799098]
[1738785723992,0.13720951,97458.0,97457.0,0.19190498]
[1738785726360,0.11585584,97458.0,97457.0,0.19190498]
[1738785726559,0.01335219,97458.0,97457.0,0.19190498]
[1738785730558,0.03480338,97458.0,97457.0,0.19190498]
[1738785731711,0.0001068,97462.0,97461.0,0.153907]
[1738785731939,0.0001068,97462.0,97461.0,0.23271446]
[1738785732156,0.0001068,97462.0,97461.0,0.23168864]
[1738785734229,0.0001068,97462.0,97461.0,0.65576263]
[1738785734404,0.0001068,97462.0,97461.0,0.69736184]
[1738785734405,8e-07,97462.0,97461.0,0.69736184]
[1738785734608,8e-07,97462.0,97461.0,0.83286549]
[1738785734871,6e-07,97465.0,97464.0,0.439802]
[1738785735070,6e-07,97465.0,97464.0,0.69932694]
[1738785735188,6e-07,97465.0,97464.0,0.70932694]
[1738785736250,0.0001069,97507.0,97494.0,0.232455]
[1738785736457,0.0001069,97507.0,97494.0,0.37812899]
[1738785736807,0.0001069,97507.0,97494.0,0.63063264]
[1738785737010,0.0001069,97507.0,97494.0,0.73747539]
[1738785737209,0.0001069,97507.0,97494.0,0.76082165]
[1738785737456,0.0001069,97507.0,97494.0,0.79176735]
[1738785738264,8e-07,97495.0,97494.0,0.79176735]
[1738785738901,8e-07,97495.0,97494.0,0.76082165]
[1738785739239,8e-07,97495.0,97494.0,1.78644056]
[1738785739681,0.00099982,97530.0,97494.0,1.78644056]
[1738785739682,0.00396592,97536.0,97531.0,0.153796]
[1738785739932,0.10250365,97535.0,97532.0,0.0153796]
[1738785741762,0.10250365,97535.0,97527.0,0.153803]
[1738785742166,0.10250365,97535.0,97516.0,0.205094]
[1738785742319,0.10250365,97535.0,97534.0,0.153792]
[1738785742970,0.10250365,97535.0,97517.0,0.205092]
[1738785743178,0.10250365,97535.0,97518.0,0.00102526]
[1738785743520,0.10250365,97535.0,97533.0,0.153793]
[1738785744688,0.00396592,97536.0,97535.0,0.15379]
[1738785746032,0.00396592,97536.0,97535.0,0.15481509]
[1738785746353,0.00396592,97536.0,97535.0,0.15379]
[1738785746695,0.00396592,97536.0,97535.0,0.22661192]
[1738785747515,0.00387466,97536.0,97535.0,0.22661192]
[1738785749114,0.01009943,97559.0,97535.0,0.22661192]
[1738785749115,0.00954133,97547.0,97535.0,0.07282192]
[1738785749316,0.00954133,97547.0,97546.0,0.153773]
[1738785749513,0.11204498,97547.0,97542.0,0.205037]
[1738785749726,0.11204498,97547.0,97526.0,0.01031403]
[1738785749727,0.10250365,97546.0,97514.0,0.14567399]
[1738785749882,0.153778,97543.0,97533.0,0.153793]
[1738785750085,0.30753465,97546.0,97534.0,0.1896777]
[1738785750286,0.30753465,97546.0,97534.0,0.153792]
[1738785750287,0.153776,97544.0,97534.0,0.153792]
[1738785750503,0.153776,97544.0,97514.0,0.14567399]
[1738785750504,0.14184131,97544.0,97519.0,0.03829488]
[1738785750685,0.14184131,97530.0,97504.0,0.14567399]
[1738785750883,0.153813,97521.0,97509.0,0.205107]
[1738785751086,0.10250365,97520.0,97512.0,0.153826]
[1738785751331,0.10250365,97520.0,97518.0,0.153817]
[1738785751957,0.14283996,97540.0,97528.0,0.1538]
[1738785751958,0.00099865,97540.0,97528.0,0.1538]
[1738785752136,0.00099865,97540.0,97529.0,0.01538]
[1738785752137,0.15,97538.0,97529.0,0.01538]
[1738785752338,0.10250365,97537.0,97529.0,0.01538]
[1738785752537,0.0473,97555.0,97541.0,0.20504]
[1738785752798,0.10250365,97546.0,97518.0,0.285589]
[1738785753035,0.10250365,97546.0,97541.0,0.15378]
[1738785753247,0.10250365,97546.0,97518.0,0.285589]
[1738785753459,0.10250365,97546.0,97544.0,0.153776]
[1738785753611,0.10250365,97546.0,97542.0,0.153778]
[1738785753821,0.10250365,97546.0,97543.0,0.153778]
[1738785754249,0.10250365,97546.0,97542.0,0.0153778]
[1738785754563,0.10250365,97546.0,97545.0,0.153775]
[1738785756610,0.10250365,97546.0,97543.0,0.153777]
[1738785756898,0.10250365,97546.0,97542.0,0.1691558]
[1738785757022,0.10250365,97546.0,97543.0,0.03741998]
[1738785757532,0.10250365,97546.0,97543.0,0.19119798]
[1738785757968,0.10250365,97546.0,97545.0,0.153775]
[1738785758803,0.10250365,97546.0,97543.0,0.24245698]
[1738785759004,0.10250365,97546.0,97543.0,0.03741998]
[1738785759209,0.10250365,97546.0,97544.0,0.0396241]
[1738785760372,0.10250365,97546.0,97545.0,0.153775]
[1738785763594,0.10250365,97546.0,97544.0,0.153776]
[1738785764296,0.10250365,97546.0,97543.0,0.205036]
[1738785764558,0.10250365,97546.0,97545.0,0.153775]
[1738785769022,0.00954133,97547.0,97546.0,0.153773]
[1738785771600,0.11204498,97547.0,97544.0,0.0492375]
[1738785771822,0.11204498,97547.0,97533.0,0.2152075]
[1738785771823,0.10250365,97546.0,97533.0,0.2152075]
[1738785772327,0.10250365,97546.0,97545.0,0.153775]
[1738785773595,0.0001068,97560.0,97541.0,0.20504]
[1738785773838,0.10250365,97559.0,97542.0,0.410078]
[1738785774071,0.10250365,97559.0,97545.0,0.00022407]
[1738785774314,0.10250365,97559.0,97550.0,0.153766]
[1738785775979,0.10243189,97559.0,97550.0,0.0782]
[1738785776222,0.10243189,97559.0,97556.0,0.153757]
[1738785776460,0.10243189,97559.0,97557.0,0.0153757]
[1738785776945,0.10243189,97559.0,97558.0,0.153754]
[1738785777927,0.0001068,97560.0,97558.0,0.153754]
[1738785778142,0.0001068,97560.0,97559.0,0.0772249]
[1738785778351,0.0001068,97560.0,97559.0,0.26979889]
[1738785778568,0.0001068,97560.0,97559.0,0.35213128]
[1738785779128,0.10261045,97560.0,97559.0,0.14567399]
[1738785779353,0.10261045,97560.0,97558.0,0.153754]
[1738785780334,0.10250365,97559.0,97556.0,0.205008]
[1738785780559,0.10250365,97559.0,97557.0,0.153755]
[1738785780775,0.10250365,97559.0,97548.0,0.15377]
[1738785780981,0.10250365,97559.0,97549.0,0.01539941]
[1738785781460,0.10250365,97559.0,97550.0,0.153766]
[1738785783587,0.10250365,97559.0,97551.0,0.153764]
[1738785784447,0.10250365,97559.0,97549.0,0.01539941]
[1738785784892,0.10250365,97559.0,97550.0,0.153767]
[1738785785093,0.10250365,97559.0,97558.0,0.153754]
[1738785786912,0.10250365,97559.0,97522.0,0.35075499]
[1738785787087,0.10250365,97554.0,97526.0,0.205072]
[1738785787492,0.1285,97558.0,97549.0,0.00022407]
[1738785787493,0.25626665,97553.0,97549.0,0.00022407]
[1738785787667,0.153765,97551.0,97549.0,0.00022407]
[1738785787866,0.10250365,97550.0,97549.0,0.00022407]
[1738785789124,0.11273261,97550.0,97549.0,0.00022407]
[1738785789327,0.34123261,97550.0,97549.0,0.00022407]
[1738785789463,0.38953261,97550.0,97549.0,0.00022407]
[1738785789690,0.73763261,97550.0,97549.0,0.00022407]
[1738785791514,0.01,97540.0,97531.0,0.09138203]
[1738785791731,0.01,97540.0,97508.0,0.00022407]
[1738785791732,0.22040365,97532.0,97516.0,0.08199704]
[1738785791973,0.25632265,97517.0,97516.0,0.08199704]
[1738785792177,0.25632265,97517.0,97508.0,0.00022407]
[1738785792178,0.153831,97509.0,97508.0,0.00022407]
[1738785792384,0.25633465,97509.0,97508.0,0.00022407]
[1738785795057,0.26668557,97509.0,97508.0,0.00022407]
[1738785796261,0.10250365,97509.0,97508.0,0.00022407]
[1738785797016,0.25633465,97509.0,97508.0,0.00022407]
[1738785797244,0.30263465,97509.0,97508.0,0.00022407]
[1738785797739,0.10250365,97509.0,97508.0,0.00022407]
[1738785798094,0.16414365,97509.0,97508.0,0.00022407]
[1738785799155,0.31797465,97509.0,97508.0,0.00022407]
[1738785799364,0.10250365,97509.0,97508.0,0.00022407]
[1738785802414,0.31788465,97509.0,97508.0,0.00022407]
[1738785804554,0.31770445,97509.0,97508.0,0.00022407]
[1738785805550,0.47134106,97509.0,97508.0,0.00022407]
[1738785805773,0.39750445,97509.0,97508.0,0.00022407]
[1738785805944,0.42050445,97509.0,97508.0,0.00022407]
[1738785807024,0.57050445,97509.0,97508.0,0.00022407]
[1738785807387,0.61940445,97509.0,97508.0,0.00022407]
[1738785809244,0.94450445,97509.0,97508.0,0.00022407]
[1738785810010,0.78015445,97509.0,97508.0,0.00022407]
[1738785811287,0.42742345,97509.0,97508.0,0.00022407]
[1738785812262,0.58125445,97509.0,97508.0,0.00022407]
[1738785812662,0.42742345,97509.0,97508.0,0.00022407]
[1738785812871,0.58125445,97509.0,97508.0,0.00022407]
[1738785813314,0.42742345,97509.0,97508.0,0.00022407]
[1738785813718,0.58125445,97509.0,97508.0,0.00022407]
[1738785813924,0.42742345,97509.0,97508.0,0.00022407]
[1738785814124,0.42742345,97509.0,97508.0,0.16194948]
[1738785814125,0.10232345,97509.0,97508.0,0.16194948]
[1738785814576,0.3251,97536.0,97508.0,0.05454196]
[1738785814780,0.10250365,97535.0,97510.0,0.15383]
[1738785814957,0.153794,97533.0,97522.0,0.15381]
[1738785815171,0.10250365,97532.0,97525.0,0.153806]
[1738785815396,0.10250365,97532.0,97531.0,0.153797]
[1738785815598,0.10250365,97532.0,97523.0,0.0777]
[1738785815801,0.10250365,97532.0,97528.0,0.153801]
[1738785816239,0.15482245,97531.0,97520.0,0.153813]
[1738785816386,0.24434496,97530.0,97521.0,0.0153813]
[1738785816591,0.00102545,97529.0,97509.0,0.0832]
[1738785816785,0.10250365,97528.0,97509.0,0.0832]
[1738785817188,0.10250365,97528.0,97524.0,0.153807]
[1738785817392,0.10250365,97528.0,97510.0,0.205107]
[1738785817619,0.10250365,97528.0,97521.0,0.153811]
[1738785817851,0.10250365,97528.0,97522.0,0.0153811]
[1738785818363,0.10250365,97527.0,97509.0,0.0832]
[1738785818564,0.10250365,97527.0,97519.0,0.153815]
[1738785818798,0.10250365,97527.0,97509.0,0.0832]
[1738785818799,0.10250365,97527.0,97513.0,0.2051]
[1738785818924,0.15483045,97526.0,97516.0,0.15382]
[1738785819130,0.10250365,97525.0,97516.0,0.15382]
[1738785819572,0.10250365,97525.0,97517.0,0.153818]
[1738785819902,0.10250365,97525.0,97515.0,0.153821]
[1738785820097,0.10250365,97525.0,97513.0,0.2051]
[1738785820317,0.25630965,97525.0,97516.0,0.15382]
[1738785820519,0.10250365,97525.0,97513.0,0.2051]
[1738785820718,0.10250365,97525.0,97509.0,0.0832]
[1738785820919,0.153808,97524.0,97514.0,0.153823]
[1738785821095,0.10250365,97523.0,97515.0,0.15382]
[1738785821306,0.10250365,97523.0,97516.0,0.15382]
[1738785821683,0.10250365,97523.0,97510.0,0.0288314]
[1738785821887,0.10250365,97523.0,97519.0,0.153815]
[1738785822060,0.10250365,97523.0,97520.0,0.0358908]
[1738785823350,0.10250365,97523.0,97521.0,0.153813]
[1738785823559,0.10250365,97523.0,97519.0,0.153815]
[1738785825004,0.10250365,97523.0,97512.0,0.205102]
[1738785825378,0.10250365,97523.0,97509.0,0.0832]
[1738785825560,0.00102545,97522.0,97509.0,0.09154241]
[1738785825862,0.10250365,97521.0,97509.0,0.09154241]
[1738785826064,0.00102545,97520.0,97511.0,0.205105]
[1738785826290,0.10250365,97519.0,97514.0,0.153823]
[1738785828126,0.00102545,97518.0,97504.0,0.205117]
[1738785828332,0.205095,97516.0,97474.0,0.205181]
[1738785828539,0.15383,97510.0,97499.0,0.153847]
[1738785828747,0.1035291,97509.0,97499.0,0.153847]
[1738785828948,0.1035291,97509.0,97500.0,0.153845]
[1738785829158,0.1035291,97509.0,97501.0,0.153844]
[1738785829337,0.1035291,97509.0,97497.0,0.205133]
[1738785829981,0.1035291,97509.0,97502.0,0.153841]
[1738785830162,0.1035291,97509.0,97508.0,0.01563058]
[1738785830313,0.10250365,97509.0,97508.0,0.00022407]
[1738785831093,0.10250365,97509.0,97508.0,0.15405707]
[1738785831500,0.00099865,97540.0,97508.0,0.12872407]
[1738785831791,0.08199704,97543.0,97524.0,0.153808]
[1738785831989,0.15378,97542.0,97524.0,0.1896968]
[1738785832228,0.01006738,97535.0,97524.0,0.1896968]
[1738785833051,0.10261035,97525.0,97524.0,0.2669968]
[1738785836263,0.0001067,97525.0,97524.0,0.3145968]
[1738785836554,0.0001067,97525.0,97524.0,0.4645968]
[1738785836955,0.0001067,97525.0,97524.0,0.3145968]
[1738785837156,0.0001067,97525.0,97524.0,0.4645968]
[1738785839736,0.06523465,97558.0,97546.0,0.153773]
[1738785839925,0.10250365,97557.0,97547.0,0.1691473]
[1738785840112,0.10250365,97557.0,97547.0,0.0153773]
[1738785840273,0.10250365,97557.0,97528.0,0.205069]
[1738785840483,0.10250365,97557.0,97529.0,0.00102518]
[1738785840716,0.10250365,97557.0,97553.0,0.153762]
[1738785840921,0.10250365,97557.0,97528.0,0.205069]
[1738785840922,0.10250365,97557.0,97547.0,0.205027]
[1738785841142,0.10250365,97557.0,97525.0,0.15]
[1738785841362,0.14184131,97550.0,97538.0,0.153784]
[1738785841523,0.25627265,97549.0,97537.0,0.153787]
[1738785841751,0.25627265,97549.0,97538.0,0.153786]
[1738785841945,0.25627265,97549.0,97532.0,0.20506]
[1738785842165,0.10250365,97549.0,97526.0,0.04564628]
[1738785842371,0.10250365,97549.0,97524.0,0.1249]
[1738785842580,0.10250365,97549.0,97542.0,0.153779]
[1738785842779,0.10250365,97549.0,97538.0,0.153785]
[1738785843217,0.10250365,97549.0,97527.0,0.205071]
[1738785843407,0.20501,97556.0,97447.0,0.05149103]
[1738785843408,0.10250365,97548.0,97547.0,0.153772]
[1738785843606,0.0001068,97560.0,97558.0,0.153754]
[1738785844040,0.0001068,97560.0,97558.0,0.23337893]
[1738785844251,0.0001068,97560.0,97558.0,0.31719609]
[1738785846062,0.0001068,97560.0,97558.0,0.153754]
[1738785846261,0.10261035,97559.0,97558.0,0.153754]
[1738785847954,0.06155,97558.0,97538.0,0.00022428]
[1738785848169,0.10261035,97559.0,97538.0,0.00022428]
[1738785848170,0.14184131,97550.0,97538.0,0.00022428]
[1738785848378,0.10250365,97549.0,97538.0,0.00022428]
[1738785848623,0.10250365,97549.0,97540.0,0.205044]
[1738785848796,0.10250365,97549.0,97545.0,0.153775]
[1738785849380,0.10250365,97549.0,97546.0,0.153772]
[1738785849788,0.10250365,97549.0,97548.0,0.15377]
[1738785853060,0.10250365,97549.0,97541.0,0.04103223]
[1738785853061,0.10250365,97549.0,97541.0,0.19481223]
[1738785853273,0.153771,97548.0,97534.0,0.205054]
[1738785853476,0.10250365,97547.0,97539.0,0.153784]
[1738785853677,0.10250365,97547.0,97527.0,0.075]
[1738785853880,0.153784,97539.0,97526.0,0.153803]
[1738785854080,0.25628765,97539.0,97528.0,0.1538]
[1738785854288,0.10250365,97539.0,97533.0,0.153793]
[1738785854978,0.10250365,97539.0,97535.0,0.15379]
[1738785855211,0.10250365,97539.0,97528.0,0.205069]
[1738785855410,0.10250365,97539.0,97518.0,0.01129277]
[1738785855672,0.25628765,97539.0,97529.0,0.153799]
[1738785856056,0.25628765,97539.0,97524.0,0.205077]
[1738785856267,0.10250365,97539.0,97528.0,0.205067]
[1738785856500,0.10250365,97539.0,97532.0,0.153795]
[1738785856626,0.25628765,97539.0,97530.0,0.153797]
[1738785857028,0.25628765,97539.0,97523.0,0.205079]
[1738785857235,0.25628765,97539.0,97531.0,0.153795]
[1738785857779,0.25628765,97539.0,97526.0,0.205072]
[1738785858001,0.25628765,97539.0,97529.0,0.153799]
[1738785858283,0.25628765,97539.0,97530.0,0.153798]
[1738785858923,0.25628765,97539.0,97529.0,0.153799]
[1738785859130,0.25628765,97539.0,97519.0,0.205086]
[1738785859335,0.25628765,97539.0,97518.0,0.01129277]
[1738785859511,0.10250365,97539.0,97518.0,0.01129277]
[1738785859757,0.10250365,97539.0,97533.0,0.358849]
[1738785859882,0.10250365,97539.0,97526.0,0.205073]
[1738785860079,0.10250365,97539.0,97530.0,0.153797]
[1738785860287,0.10250365,97539.0,97531.0,0.153796]
[1738785860889,0.25628765,97539.0,97530.0,0.153798]
[1738785861101,0.25628765,97539.0,97518.0,0.01129277]
[1738785861300,0.25628765,97539.0,97522.0,0.153811]
[1738785861505,0.25628765,97539.0,97518.0,0.01129277]
[1738785861992,0.56277462,97539.0,97507.0,0.205111]
[1738785862203,0.56277462,97539.0,97498.0,0.0798]
[1738785862204,0.57837765,97539.0,97498.0,0.0798]
[1738785862354,0.57837765,97539.0,97505.0,0.153838]
[1738785862531,0.57837765,97539.0,97503.0,0.20512]
[1738785862752,0.57837765,97539.0,97504.0,0.153838]
[1738785863100,0.57837765,97539.0,97505.0,0.205117]
[1738785863310,0.57837765,97539.0,97504.0,0.08199704]
[1738785863511,0.57837765,97539.0,97509.0,0.15383]
[1738785863652,0.57837765,97539.0,97509.0,0.153831]
[1738785863858,0.57837765,97539.0,97507.0,0.153833]
[1738785864077,0.57837765,97539.0,97510.0,0.153829]
[1738785864280,0.55537765,97539.0,97507.0,0.205113]
[1738785864690,0.57837765,97539.0,97507.0,0.205113]
[1738785864894,0.57837765,97539.0,97513.0,0.153825]
[1738785865097,0.57837765,97539.0,97504.0,0.28711504]
[1738785865279,0.57837765,97539.0,97505.0,0.153837]
[1738785865478,0.57837765,97539.0,97504.0,0.08199704]
[1738785865702,0.90347765,97539.0,97504.0,0.08199704]
[1738785867367,0.153825,97514.0,97504.0,0.07744539]
[1738785867541,0.10250365,97513.0,97502.0,0.153842]
[1738785867783,0.25632965,97513.0,97502.0,0.153842]
[1738785867924,0.10250365,97513.0,97503.0,0.15384]
[1738785868127,0.10250365,97513.0,97504.0,0.0438767]
[1738785868128,0.25632965,97513.0,97504.0,0.0438767]
[1738785868582,0.10250365,97513.0,97504.0,0.0438767]
[1738785869106,0.10250365,97513.0,97512.0,0.153827]
[1738785869455,0.10250365,97513.0,97511.0,0.153828]
[1738785869680,0.10250365,97513.0,97508.0,0.153832]
[1738785869855,0.10250365,97513.0,97512.0,0.153827]
[1738785871631,0.10250365,97513.0,97507.0,0.205112]
[1738785871841,0.10250365,97513.0,97504.0,0.24921898]
[1738785872062,0.10250365,97513.0,97504.0,0.00022428]
[1738785872263,0.10250365,97511.0,97504.0,0.00022428]
[1738785872437,0.153833,97509.0,97504.0,0.00022428]
[1738785872638,0.153836,97507.0,97504.0,0.00022428]
[1738785872845,0.10250365,97506.0,97504.0,0.00022428]
[1738785873423,0.10250365,97506.0,97504.0,0.01563121]
[1738785874395,0.10250365,97506.0,97504.0,0.00022428]
[1738785877912,0.10250365,97506.0,97505.0,0.153838]
[1738785878111,0.16405365,97506.0,97505.0,0.153838]
[1738785878365,0.10250365,97506.0,97505.0,0.233738]
[1738785878563,0.10250365,97506.0,97505.0,0.30286863]
[1738785879110,0.00844,97533.0,97505.0,0.30286863]
[1738785879111,0.205033,97546.0,97506.0,0.205115]
[1738785879403,0.0491,97552.0,97524.0,0.153808]
[1738785879404,0.10250365,97525.0,97524.0,0.153808]
[1738785879958,0.10250365,97525.0,97524.0,0.233708]
[1738785880926,0.06155,97540.0,97539.0,0.153784]
[1738785881127,0.16405365,97540.0,97539.0,0.153784]
[1738785881460,0.16405365,97540.0,97536.0,0.153787]
[1738785881698,0.10250365,97539.0,97536.0,0.153787]
[1738785882257,0.10250365,97539.0,97537.0,0.0358846]
[1738785882459,0.10250365,97539.0,97538.0,0.153786]
[1738785883111,0.10250365,97539.0,97537.0,0.0358846]
[1738785883581,0.10250365,97539.0,97538.0,0.153786]
[1738785883920,0.10250365,97539.0,97516.0,0.0806]